[Event "AI Cup Div-1 2023"]
[Site "Online"]
[Date "2023.09.25"]
[Round "1.3"]
[White "Nepomniachtchi, Ian"]
[Black "Giri, Anish"]
[Result "1/2-1/2"]
[Annotator "TA"]
[ECO "B51"]
[WhiteElo "2771"]
[BlackElo "2760"]
[PlyCount "81"]
[EventDate "2023.09.18"]
[EventType "k.o."]
[EventCountry "NET"]
[SourceTitle "playchess.com"]
[Source "ChessBase"]
[SourceQuality "1"]
[TimeControl "900+3"]

{[%evp 11,81,0,14,4,0,-2,-3,0,0,0,0,0,20,16,14,8,13,0,0,0,8,8,6,7,4,12,10,9,29,30,49,3,10,0,0,-232,0,-34,-28,-20,0,0,0,0,0,0,6,12,28,-36,-29,-42,-49,-43,-47,-53,126,129,139,136,122,130,411,408,12831,176,383,0,8360,0,335,0]} 1. e4 {[%emt 0:00:08]} c5 {[%emt 0:00:17]} 2. Nf3 {[%emt 0:00:02]} d6 {[%emt 0:00:01]} 3. Bb5+ {[%emt 0:00:02]} Nd7 {[%emt 0:00:01]} 4. d4 {[%emt 0:00:03]} cxd4 {[%emt 0:00:17]} 5. Qxd4 {[%emt 0:00:01]} a6 {[%emt 0:00:01]} 6. Bxd7+ {[%emt 0:00:03]} Bxd7 {[%emt 0:00:01]} 7. c4 {[%emt 0:00:01] 7.Nc3 is the recent fashion. B51: Sicilian: Moscow Variation (3 Bb5+) without 3...Bd7.} Nf6 {[%emt 0:00:08]} 8. Nc3 {[%emt 0:00:02]} g6 {[%emt 0:00:03]} 9. Bg5 {[%emt 0:00:52] The position is equal.} Bg7 {[%emt 0:00:06]} 10. O-O {[%emt 0:01:04]} O-O {[%emt 0:00:03]} 11. Rad1 {[%emt 0:00:07] [#]} b5 $146 {[%emt 0:01:45]} ({Predecessor:} 11... h6 12. Bxf6 Bxf6 13. e5 Bg7 14. Qe3 Bc6 15. exd6 exd6 16. Nd4 Re8 17. Nxc6 bxc6 {½-½ Nepomniachtchi,I (2784)-Giri,A (2764) Carlsen Inv Prelim rapid 2020 (3.4)}) 12. c5 {[%emt 0:00:23]} Be6 $1 {[%emt 0:04:55]} 13. cxd6 {[%emt 0:00:17]} Qxd6 {[%emt 0:00:07]} 14. e5 {[%emt 0:00:06]} Qxd4 {[%emt 0:00:03]} 15. Nxd4 {[%emt 0:00:00]} Ng4 {[%emt 0:01:40]} 16. Nxe6 {[%emt 0:00:10]} fxe6 {[%emt 0:00:01]} 17. Bxe7 {[%emt 0:00:01]} Rfe8 {[%emt 0:00:07]} 18. Bd6 {[%emt 0:00:08]} Nxe5 {[%emt 0:00:02]} 19. Ne4 {[%emt 0:00:01]} Nf7 {[%emt 0:01:06]} 20. b3 {[%emt 0:00:09]} Rac8 {[%emt 0:00:06]} 21. Rd2 {[%emt 0:00:24]} (21. Bc5 $14) 21... Red8 $11 {[%emt 0:00:03]} 22. Rfd1 {[%emt 0:00:04]} Bh6 {[%emt 0:00:22]} 23. Rd3 {[%emt 0:00:38]} (23. f4 $11 {and White stays safe.}) 23... Rc2 $2 {[%emt 0:00:32]} (23... Nxd6 $1 $19 24. Nxd6 (24. Rxd6 $2 Rxd6 25. Nxd6 Rd8 $19) 24... Rc1 25. Rxc1 Bxc1) 24. a4 {[%emt 0:00:04]} bxa4 {[%emt 0:00:07]} 25. bxa4 {[%emt 0:00:01]} Rc4 {[%emt 0:00:28][%csl LRa4,LRe4]} 26. f3 {[%emt 0:00:02]} Rxa4 {[%emt 0:00:08]} 27. Bc5 {[%emt 0:00:49]} Rc8 {[%emt 0:00:36][%cal Oa4e4] Hoping for ...Rxe4!} 28. Bf2 {[%emt 0:00:15]} Ra2 {[%emt 0:00:03]} 29. Rd7 {[%emt 0:00:04][%cal Od7f7] Threatens to win with Rxf7!} Rcc2 {[%emt 0:00:57][%cal Oc2f2]} 30. h4 {[%emt 0:00:03] [#]} (30. Kf1 $11) 30... Rxf2 $1 $15 {[%emt 0:00:38]} 31. Nxf2 {[%emt 0:00:05] And now Ne4 would win.} Be3 {[%emt 0:00:00]} 32. Rf1 {[%emt 0:00:18]} Ne5 {[%emt 0:00:06] Repels Rd3} 33. Re7 {[%emt 0:00:13]} Nd3 $2 {[%emt 0:00:10] [#]} (33... Re2 $15 {stays ahead.}) 34. Rb1 $1 $16 {[%emt 0:00:01][%cal Rb1b8]} Bxf2+ {[%emt 0:00:04] [#]} (34... Rxf2 $2 35. Rb8#) 35. Kf1 $1 {[%emt 0:00:02][%cal Rb1b8]} Bg3 {[%emt 0:00:21] [#] Inhibits Rb8+.} (35... Bxh4 $2 36. Rb8#) 36. Rbb7 $1 {[%emt 0:00:11][%cal Re7e8][%mdl 1024] White has strong compensation.} Kf8 {[%emt 0:01:02][%mdl 8192] Prevents Re8+} (36... Bxh4 $2 37. Re8#) (36... Bd6 $16 {might work better.} 37. Rg7+ Kh8) 37. Rf7+ $18 {[%emt 0:00:06]} Ke8 {[%emt 0:00:07]} (37... Kg8 $142 38. Rfd7 Ra1+ 39. Ke2 Nc1+ 40. Kd1 Nb3+ 41. Kc2 Rc1+ 42. Kb2 (42. Kxb3 Rb1+ 43. Kc4 Rxb7 $18) 42... Be5+ 43. Kxb3 Rb1+ 44. Kc4 Rxb7 45. Rxb7 Bf6) 38. Rg7 $2 {[%emt 0:00:16]} (38. Rbe7+ Kd8 39. Ra7 (39. Rd7+ Kc8 $16) 39... Ra1+ 40. Ke2 Nc1+ 41. Kd2 Nb3+ 42. Kc2 Rc1+ 43. Kxb3) 38... Kf8 $2 {[%emt 0:00:11]} (38... Bxh4 $2 39. Rg8#) (38... Bd6) 39. Rgf7+ $2 {[%emt 0:00:03]} (39. Rbf7+ Ke8 40. Ra7 Ra1+ 41. Ke2 Nc1+ 42. Ke3) 39... Ke8 $1 {[%emt 0:00:01] ...Rf2+ would be deadly.} 40. Rg7 $2 {[%emt 0:00:00]} (40. Rbe7+ Kd8 41. Ra7 (41. Rd7+ Kc8 $16) 41... Ra1+ 42. Ke2 Nc1+ 43. Kd2 Nb3+ 44. Kc2 Rc1+ 45. Kxb3) 40... Kf8 $1 {[%emt 0:00:10] Strongly threatening ...Rf2+.} (40... Bxh4 $2 41. Rg8#) 41. Rgf7+ $2 {[%emt 0:00:01] Weighted Error Value: White=0.67/Black=0.34} (41. Rbf7+ $18 Ke8 42. Ra7 Ra1+ 43. Ke2 Nc1+ 44. Ke3) 1/2-1/2

[Event "AI Cup Div-1 2023"]
[Site "Online"]
[Date "2023.09.25"]
[Round "1.3"]
[White "Lazavik, Denis"]
[Black "Mamedyarov, Shakhriyar"]
[Result "1/2-1/2"]
[Annotator "TA"]
[ECO "D02"]
[WhiteElo "2560"]
[BlackElo "2734"]
[PlyCount "67"]
[EventDate "2023.09.18"]
[EventType "k.o."]
[EventCountry "NET"]
[SourceTitle "playchess.com"]
[Source "ChessBase"]
[SourceQuality "1"]
[TimeControl "900+3"]

{[%evp 11,67,0,0,4,17,5,19,8,29,3,9,-18,0,-57,20,13,33,18,16,22,28,0,28,0,16,8,11,19,20,0,0,0,0,0,0,0,28,36,37,0,0,0,0,13,55,-47,-28,-29,-29,-31,0,0,0,-22,0,0,0,-62]} 1. d4 {[%emt 0:00:04]} Nf6 {[%emt 0:00:07]} 2. Nf3 {[%emt 0:00:01]} g6 {[%emt 0:00:03]} 3. g3 {[%emt 0:00:01]} Bg7 {[%emt 0:00:03]} 4. Bg2 {[%emt 0:00:01]} O-O {[%emt 0:00:08]} 5. O-O {[%emt 0:00:02]} d5 {[%emt 0:00:02]} 6. c3 {[%emt 0:00:03]} c6 {[%emt 0:00:10]} 7. Re1 {[%emt 0:00:14] D02: 1 d4 d5 2 Nf3 sidelines, including 2...Nf6 3 g3 and 2...Nf6 3 Bf4.} Bf5 {[%emt 0:00:06]} 8. Nbd2 {[%emt 0:00:08]} Qc8 {[%emt 0:00:22]} 9. Nh4 {[%emt 0:00:40]} Bg4 {[%emt 0:01:16]} 10. Qc2 {[%emt 0:00:22]} (10. f3 $5 {[%cal Rf3g4]} Be6 11. e4 $11) 10... Re8 {[%emt 0:00:17] [#]} 11. c4 $146 {[%emt 0:03:22]} ({Predecessor:} 11. e4 dxe4 12. Nxe4 Bh3 13. Nxf6+ Bxf6 14. Nf3 Bxg2 15. Kxg2 Nd7 16. Bf4 Bg7 17. Re2 {½-½ Bartiromo,G (1662)-Cantore,M (1670) Verona op-B 2017 (4.24)}) 11... Na6 {[%emt 0:00:40]} 12. b3 {[%emt 0:00:48]} (12. a3 $11) 12... g5 {[%emt 0:01:45]} (12... c5 $15) 13. Nhf3 $11 {[%emt 0:00:11]} Bf5 {[%emt 0:00:01]} 14. Qc3 {[%emt 0:02:16]} h6 {[%emt 0:01:10]} 15. Bb2 {[%emt 0:00:26]} Ne4 {[%emt 0:00:29][%cal Bf6e4,Be4d6,Bd6b5][%mdl 32]} 16. Qc1 {[%emt 0:00:47]} Qe6 {[%emt 0:00:12]} 17. Ne5 {[%emt 0:00:50]} Red8 {[%emt 0:01:02]} 18. Nf1 {[%emt 0:00:53]} Bh7 {[%emt 0:01:45]} 19. f3 {[%emt 0:00:19]} Nd6 {[%emt 0:00:06]} 20. c5 {[%emt 0:00:07]} Nb5 {[%emt 0:01:55][%cal Ob5d4]} 21. f4 $1 {[%emt 0:01:44]} Nb4 {[%emt 0:00:25]} 22. Ne3 {[%emt 0:00:16] Wards off Nc2} (22. fxg5 Nc2 23. gxh6 Bxh6 $17) 22... gxf4 {[%emt 0:01:02]} 23. gxf4 {[%emt 0:00:02]} Bxe5 {[%emt 0:00:02]} (23... f6 $5 {[%cal Rf6e5]} 24. Nf3 h5 $11) 24. fxe5 {[%emt 0:00:15]} (24. dxe5 {feels hotter.} d4 25. f5 Qxe5 26. Ng4) 24... Kh8 $1 {[%emt 0:00:01]} 25. Kh1 {[%emt 0:00:29]} (25. a3 $5 {[%cal Ra3b4]} Na6 26. Kh1 $14 (26. a4 Nbc7 $11)) 25... Rg8 {[%emt 0:00:02][%cal Og8g2] aiming for ...Rxg2!} 26. Bf3 {[%emt 0:00:05]} Be4 {[%emt 0:00:13][%cal Ob4d3]} 27. Rf1 {[%emt 0:00:47] Strongly threatening Bxe4.} Qh3 {[%emt 0:01:03][%cal Ob4c2] And now ...Nc2! would win.} (27... Qg6 $5 {[%cal Rb4c2]}) 28. Qd2 {[%emt 0:00:09] [#] Inhibits Nc2.} (28. Bxe4 $14 dxe4 29. Rxf7) 28... Nc2 $1 {[%emt 0:01:42]} 29. Nxc2 {[%emt 0:00:36] [#] Threatens to win with Bxe4.} Rg2 $1 {[%emt 0:00:01][%csl Gg2][%cal Rh3h2]} 30. Qf4 {[%emt 0:00:00]} Rg4 {[%emt 0:00:14][%mdl 1024] Black has compensation.} (30... Rxe2 $2 31. Bxe4 Rg8 32. Rf2 Rxe4 33. Qc1 $18 (33. Qxf7 Rg7 $16)) (30... Nc7 $5 {[%cal Rc7e6]} 31. Ne3 (31. Bxg2 $2 Qxg2#) (31. Bxe4 dxe4 32. Ne3 Rxe2 $15) 31... Rxe2 $11) 31. Qe3 {[%emt 0:00:16] Hoping for Bxe4. The position is equal.} Rg2 {[%emt 0:00:05][%csl Gg2][%cal Rh3h2]} 32. Qf4 {[%emt 0:00:01]} (32. Bxg2 $2 Qxg2#) 32... Rg4 {[%emt 0:00:02]} (32... Rxe2 $2 33. Bxe4 Rg8 34. Rf2 Rxe4 35. Qd2 $18 (35. Qxf7 Rg7 $16)) (32... Nc7 $5 {[%cal Rc7e6]} 33. Ne3 (33. Bxg2 $2 Qxg2#) (33. Bxe4 dxe4 34. Ne3 Rxe2 $15) 33... Rxe2 $11) 33. Qe3 {[%emt 0:00:14] Bxe4 would be deadly.} Rg2 {[%emt 0:00:05]} ({Black should try} 33... Bxc2 $11 34. Rg1 Rag8) 34. Qf4 {[%emt 0:00:01] An interesting game.   Weighted Error Value: White=0.16 (very precise) /Black=0.12 (very precise)} (34. Bxg2 $2 Qxg2#) 1/2-1/2

[Event "AI Cup Div-1 2023"]
[Site "Online"]
[Date "2023.09.25"]
[Round "1.4"]
[White "Mamedyarov, Shakhriyar"]
[Black "Lazavik, Denis"]
[Result "1/2-1/2"]
[Annotator "RC"]
[ECO "E32"]
[WhiteElo "2734"]
[BlackElo "2560"]
[PlyCount "29"]
[EventDate "2023.09.18"]
[EventType "k.o."]
[EventCountry "NET"]
[SourceTitle "playchess.com"]
[Source "ChessBase"]
[SourceQuality "1"]
[TimeControl "900+3"]

1. d4 {[%emt 0:00:04]} Nf6 {[%emt 0:00:06]} 2. c4 {[%emt 0:00:03]} e6 {[%emt 0:00:03]} 3. Nc3 {[%emt 0:00:02]} Bb4 {[%emt 0:00:01]} 4. Qc2 {[%emt 0:00:02]} O-O {[%emt 0:00:02]} 5. Nf3 {[%emt 0:00:08]} d5 {[%emt 0:00:03]} 6. Bg5 {[%emt 0:00:04]} h6 {[%emt 0:00:02]} 7. Bxf6 {[%emt 0:00:05]} Qxf6 {[%emt 0:00:02]} 8. a3 {[%emt 0:00:00]} Bxc3+ {[%emt 0:00:02]} 9. Qxc3 {[%emt 0:00:00]} dxc4 {[%emt 0:00:02]} 10. Qxc4 {[%emt 0:00:04]} Nc6 {[%emt 0:00:02]} 11. Rd1 {[%emt 0:00:22]} Re8 {[%emt 0:03:35]} 12. Qc3 {[%emt 0:00:58]} e5 {[%emt 0:00:12]} 13. d5 {[%emt 0:00:12]} Nb8 {[%emt 0:00:03]} 14. e3 {[%emt 0:00:42]} Bg4 {[%emt 0:00:10]} 15. Be2 {[%emt 0:00:13]} 1/2-1/2

[Event "AI Cup Div-1 2023"]
[Site "Online"]
[Date "2023.09.25"]
[Round "1.4"]
[White "Vachier-Lagrave, Maxime"]
[Black "Firouzja, Alireza"]
[Result "1-0"]
[Annotator "TA"]
[ECO "B18"]
[WhiteElo "2727"]
[BlackElo "2777"]
[PlyCount "143"]
[EventDate "2023.09.18"]
[EventType "k.o."]
[EventCountry "NET"]
[SourceTitle "playchess.com"]
[Source "ChessBase"]
[SourceQuality "1"]
[TimeControl "900+3"]

{[%evp 9,141,15,15,16,13,0,14,7,8,-12,-12,-14,-20,-24,-23,-15,0,-7,2,0,19,0,0,0,0,-13,-11,-19,-6,-7,4,-25,-33,-36,0,-78,0,0,0,-22,36,36,43,37,34,11,37,18,104,104,445,443,422,415,422,422,424,409,413,17,368,306,292,285,253,15,15,22,16,0,0,0,0,0,0,0,0,-6,-8,-8,0,-8,-8,-8,0,-8,0,0,0,-8,0,0,0,0,0,0,0,0,0,0,0,0,0,0,0,-253,-253,-2373,-1692,-29985,-29986,-29986,-29987,-29989,-29990,-29996,-29995,-29995,-29996,-29996,-29969,-29969,-29965,-29965,0,0,0,0,0,0,0,0,29996,29997]} 1. e4 {[%emt 0:00:03]} c6 {[%emt 0:00:04]} 2. d4 {[%emt 0:00:05]} d5 {[%emt 0:00:01]} 3. Nc3 {[%emt 0:00:01]} dxe4 {[%emt 0:01:00]} 4. Nxe4 {[%emt 0:00:00]} Bf5 {[%emt 0:00:02]} 5. Qf3 {[%emt 0:00:03]} Bg6 {[%emt 0:00:34]} 6. c3 {[%emt 0:00:04] B18: Classical Caro-Kann: 4...Bf5 sidelines.} Nd7 {[%emt 0:00:16]} 7. Bc4 {[%emt 0:00:55]} e5 {[%emt 0:01:34] [#]} 8. Ne2 $146 {[%emt 0:00:18] The position is equal.} ({Predecessor:} 8. Qe2 Be7 9. f4 Bxe4 10. Qxe4 Ngf6 11. Qe2 exd4 12. Nf3 dxc3 13. O-O O-O 14. Kh1 {0-1 Vingerling,M (2195)-Haller,P (2093) Oberliga Baden 0506 2005 (1.6)}) 8... exd4 {[%emt 0:00:32]} 9. cxd4 {[%emt 0:00:00]} (9. Nxd4 Qe7 10. O-O Ne5 11. Bxf7+ Nxf7 $17) 9... Bb4+ {[%emt 0:01:28]} 10. N4c3 {[%emt 0:00:13]} Ngf6 {[%emt 0:00:10]} 11. O-O {[%emt 0:00:03]} O-O {[%emt 0:00:02]} 12. Bb3 {[%emt 0:02:09]} Qa5 {[%emt 0:00:45]} 13. Nf4 {[%emt 0:00:41]} Bf5 {[%emt 0:01:33]} 14. h3 {[%emt 0:00:02]} Rfe8 {[%emt 0:00:53]} 15. g4 {[%emt 0:01:31]} (15. Bd2 $5) 15... Be4 {[%emt 0:01:15]} 16. Nxe4 {[%emt 0:00:03]} Rxe4 {[%emt 0:00:51]} 17. Rd1 {[%emt 0:00:42]} Rae8 {[%emt 0:00:23][%cal Oh7h5]} 18. Be3 {[%emt 0:00:18]} Bd6 {[%emt 0:00:32]} 19. Rac1 {[%emt 0:02:00]} Nb6 {[%emt 0:01:07]} 20. Bc2 {[%emt 0:01:28]} (20. Nh5 {is more complex.} Nbd5 21. Nxf6+ Nxf6 22. d5) 20... R4e7 {[%emt 0:00:04]} 21. Bb3 {[%emt 0:00:01] Prevents Nc4} Ne4 {[%emt 0:00:12]} 22. h4 {[%emt 0:00:29] Inhibits Ng5.} (22. d5 $1 $11) 22... Bxf4 {[%emt 0:00:35]} (22... Qb5 $17) 23. Bxf4 $11 {[%emt 0:00:23]} Nd5 {[%emt 0:00:02]} 24. Rc2 {[%emt 0:00:33]} Nb4 {[%emt 0:01:45]} ({Better is} 24... Nxf4 $11 25. Qxf4 Nf6) 25. Re2 $14 {[%emt 0:00:15]} Nd5 {[%emt 0:00:13][%cal Oe4g5] White must now prevent ...Ng5!} 26. Rde1 {[%emt 0:00:57][%cal Re2e4]} Nef6 {[%emt 0:00:10]} (26... Nxf4 $2 27. Qxf4 (27. Rxe4 $2 Qxe1+ 28. Rxe1 Rxe1+ 29. Kh2 R1e4 $17) 27... Qc7 28. Qxc7 (28. Rxe4 $2 Qxf4 {[%mdl 64] Pin} 29. Rxe7 Rxe7 $19) 28... Rxc7 29. Rxe4 $18) 27. Rxe7 {[%emt 0:00:19]} Nxe7 {[%emt 0:00:05]} 28. Re5 {[%emt 0:00:12]} Qd8 {[%emt 0:00:02]} (28... Ned5 $11 {keeps the balance.}) 29. Bg5 $36 {[%emt 0:00:23][%mdl 2048] White is on the roll. White is much more active. This pair of bishops is nice.} Qxd4 $2 {[%emt 0:00:11][%mdl 8192]} (29... Nfd5 $16 {is tougher.}) 30. Bxf6 $18 {[%emt 0:00:03]} gxf6 {[%emt 0:00:01]} 31. Qxf6 {[%emt 0:00:39]} Qxg4+ {[%emt 0:00:01]} 32. Kf1 {[%emt 0:00:29]} Qg7 {[%emt 0:00:00] [#]} 33. Qd6 {[%emt 0:00:01]} (33. Rg5 Ng6 34. Qf5 Kh8 $11) 33... Qf8 {[%emt 0:00:03]} 34. h5 {[%emt 0:00:21] Repels Ng6} ({White has to play} 34. Qd7 $18) 34... Kh8 $2 {[%emt 0:00:09][%mdl 8192]} (34... Nd5 $1 $11 35. Rg5+ Kh8 36. Qxf8+ Rxf8) 35. Qf6+ {[%emt 0:00:39]} Qg7 {[%emt 0:00:01]} 36. Qxf7 {[%emt 0:00:00]} Qxe5 {[%emt 0:00:08] [#]} 37. Qxe8+ $2 {[%emt 0:00:01][%mdl 4096] Endgame KQB-KQN} (37. f4 $1 $18 {[%cal Rf4e5]} Qb5+ 38. Bc4 Qxc4+ 39. Qxc4) 37... Kg7 $11 {[%emt 0:00:00]} 38. Qf7+ {[%emt 0:00:03]} Kh6 {[%emt 0:00:01]} 39. Bc2 {[%emt 0:00:03]} (39. Bd1 $5 {[%cal Rf2f4]} Nf5 40. Bc2 $14 (40. Qxb7 Qd5 $11)) 39... Qb5+ {[%emt 0:00:06]} 40. Kg1 {[%emt 0:00:04]} Qg5+ {[%emt 0:00:02]} (40... Qxh5 41. Qxh7+ Kg5 42. Qxe7+ Kg4 43. Qe4+ Kg5 44. Qe5+ Kh6 45. Qf6+) 41. Kf1 {[%emt 0:00:01][%csl Gc2][%cal Rf7h7]} Qc1+ {[%emt 0:00:05]} (41... Qxh5 42. Qxh7+ Kg5 43. Qxe7+ Kg4 44. Qe4+ Kg5 45. Qe5+ Kh6 46. Qf6+) 42. Kg2 {[%emt 0:00:06]} Qxc2 {[%emt 0:00:03]} 43. Qf8+ {[%emt 0:00:16]} (43. Qxe7 {simplifies} Qxb2 44. Qe6+ Kxh5 45. Qe8+) 43... Kxh5 {[%emt 0:00:02]} 44. Qxe7 {[%emt 0:00:00]} Qxb2 {[%emt 0:00:08]} 45. Qxh7+ {[%emt 0:00:02] KQ-KQ} Kg5 {[%emt 0:00:01]} 46. Qe7+ {[%emt 0:00:01]} Kf5 {[%emt 0:00:01]} 47. Qc5+ {[%emt 0:00:04]} Ke4 {[%emt 0:00:06]} 48. Qxa7 {[%emt 0:00:06]} Kd5 {[%emt 0:00:03]} 49. Kg3 {[%emt 0:00:09]} c5 {[%emt 0:00:01]} 50. f4 {[%emt 0:00:01]} c4 {[%emt 0:00:04]} 51. Qa5+ {[%emt 0:00:02]} b5 {[%emt 0:00:02]} (51... Ke4 $5 52. Qe1+ $8 Kd3 $11) 52. Qd8+ {[%emt 0:00:01]} Ke4 {[%emt 0:00:01]} 53. Qe7+ {[%emt 0:00:02]} Kd3 {[%emt 0:00:01][%cal Ob2d4] ...Qd4! is the strong threat.} 54. Qh7+ {[%emt 0:00:02]} Ke3 {[%emt 0:00:03] aiming for ...Qf2+.} (54... Kd2 $5 {[%cal Rb2a3]} 55. Qh2+ Kc1 56. Qh1+ Kd2 57. Qh2+ Kc3 58. Qh8+ Kc2 59. Qh7+ Kd1 $11) 55. Qe7+ {[%emt 0:00:03]} Kd2 {[%emt 0:00:02][%cal Ob2d4] And now ...Qd4! would win.} 56. f5 $1 {[%emt 0:00:03] Hoping for f6.} c3 {[%emt 0:00:10][%cal Oc3c2] Strongly threatening ...c2!} (56... Qxa2 $2 57. f6 Qb1 58. f7 Qg1+ 59. Kf4 Qh2+ 60. Kg5 Qg3+ 61. Kh6 Qh3+ 62. Kg7 Qg4+ 63. Kf6 Qf3+ 64. Kg6 Qd3+ 65. Kg7 Qg3+ 66. Kh6 Qh3+ 67. Kg6 Qd3+ 68. Kg7 Qg3+ 69. Kh7 Qh3+ 70. Kg6 Qd3+ $18) 57. Qd6+ $2 {[%emt 0:00:00][%mdl 8192]} (57. f6 $2 c2 58. Qd7+ Kc1 $19) (57. Qg5+ $11 Kd3 58. f6) 57... Kc1 $19 {[%emt 0:00:03][%cal Oc3c2] Threatens to win with ...c2!} 58. f6 $2 {[%emt 0:00:06]} (58. Qe5 Kb1 59. f6) 58... c2 {[%emt 0:00:01][%cal Oc1b1]} (58... Qxa2 59. Qf4+ Kb2 60. f7 $11) 59. Qf4+ {[%emt 0:00:03]} Kb1 {[%emt 0:00:01]} 60. f7 {[%emt 0:00:00]} Qg7+ {[%emt 0:00:03]} (60... c1=R 61. Qf5+ (61. f8=Q Rc3+ 62. Kg4 Rc4 $11) 61... Ka1 62. f8=Q $11 (62. f8=N Rg1+ 63. Kf3 Rf1+ 64. Ke4 Qc2+ 65. Ke5 Rxf5+ 66. Ke6 Qc5 67. a3 Qd5+ 68. Ke7 Rf7+ 69. Ke8 Qb7 70. Ng6 Qd7#)) 61. Kf2 {[%emt 0:00:02]} c1=Q {[%emt 0:00:03]} (61... c1=R $2 62. Qb4+ (62. f8=B Qg1+ 63. Ke2 Rc2+ 64. Kd3 Qd1+ 65. Ke3 Qe2+ 66. Kd4 Rc4+ {[%mdl 64] Skewer} 67. Kd5 Rxf4 68. Bg7 Qe7 69. Bh8 Rf5+) 62... Ka1 63. f8=Q $19 (63. f8=B Qf6+ 64. Ke2 Qe6+ 65. Kf2 Rc2+ 66. Kf3 Qh3+ 67. Ke4 Re2+ 68. Kf4 Rf2+ 69. Ke5 Qf5+ 70. Kd6 Qxf8+ 71. Ke5 Qxb4 72. a4 Qc5+ 73. Ke4 b4 74. a5 b3 75. a6 b2 76. Kd3 b1=Q#)) 62. f8=Q {[%emt 0:00:08]} Qgg1+ {[%emt 0:00:04]} 63. Kf3 {[%emt 0:00:01]} Qcd1+ {[%emt 0:00:06]} (63... Kxa2 $2 {perishes.} 64. Q8f7+ Ka3 65. Qa7+ Kb3 66. Qxg1 Qxg1 67. Qd2 Qf1+ 68. Kg3 $19) 64. Ke4 {[%emt 0:00:01]} Qg2+ {[%emt 0:00:01]} (64... Kxa2 65. Q4f7+ Qb3 66. Qa8+ Kb2 67. Qxb3+ Kxb3 68. Qd5+ Ka4 69. Qa2+ Kb4 70. Qd2+ Kc4 71. Qd5+ Kb4 72. Qd2+ Kb3 73. Qd5+ Kb4 74. Qd2+ $11) 65. Ke5 {[%emt 0:00:03]} Qdd5+ {[%emt 0:00:05]} (65... Qxa2 66. Q8b4+ Qab3 67. Qfe4+ Kb2 68. Qg2+ Ka1 69. Qa8+ Qa4 70. Qaa5 $17) 66. Kf6 {[%emt 0:00:00]} Kb2 $2 {[%emt 0:00:02]} ({Inferior is} 66... Qgxa2 67. Qf1+ Kc2 68. Qe2+ Kc3 69. Qe3+ Kc2 70. Qe2+ (70. Qc8+ $2 Qac4 $19) 70... Kc1 71. Qf1+ Kc2 72. Qe2+ $11) (66... Qb2+ {mates} 67. Kg6 Qc6+ 68. Kh7 Qbc2+ 69. Kh8 Q2c3+ 70. Kh7 Qh3+ 71. Kg7 Qcg2+ 72. Kf6 Qc3+ 73. Kf7 Qd5+ 74. Kg6 Qcc6+ 75. Kg7 Qg2+ 76. Kh8 Qh1+ 77. Kg7 Qhg2+ 78. Kh8 Qc3+ 79. Kh7 Qgc2+ 80. Kh6 Qh3+ 81. Kg5 Qhg2+ 82. Kh4 Qh7+ 83. Q8h6 Qxh6+ 84. Qxh6 Qh1+ 85. Kg5 Qxh6+ 86. Kxh6 Kxa2 87. Kh5 b4 88. Kh6 b3 89. Kh5 b2 90. Kh4 b1=Q 91. Kg5 Kb3 92. Kf4 Qg6 93. Ke5 Qg5+ 94. Kd6 Kc4 95. Kd7 Kc5 96. Ke6 Kc6 97. Kf7 Kd6 98. Kf8 Ke6 99. Ke8 Qg8#) 67. Q8b4+ $1 $11 {[%emt 0:00:03]} Kxa2 {[%emt 0:00:01]} 68. Qa5+ {[%emt 0:00:02]} Kb1 {[%emt 0:00:02]} 69. Qe1+ {[%emt 0:00:02]} Ka2 $1 {[%emt 0:00:04] ( -> ...Qd8+)} 70. Qa5+ {[%emt 0:00:01]} Kb3 $2 {[%emt 0:00:01][%mdl 8192]} (70... Kb1 $11 71. Qe1+ Ka2 72. Qa5+) 71. Qe3+ {[%emt 0:00:12]} Kc4 {[%emt 0:00:02]} 72. Qac3# {[%emt 0:00:01] Quite a comeback for White. Excellently played by Vachier-Lagrave!   Weighted Error Value: White=0.46/Black=0.32} 1-0